fUST/lending_fUST_20260109
["ID","MTS","AMOUNT","RATE_DAILY","PERIOD"]
[401107327,1767934247065,-5000.0,0.0001863,2]
[401107328,1767934247075,-5000.0,0.0001863,2]
[401107329,1767934247084,-5000.0,0.0001863,2]
[401107330,1767934247095,-6006.53001288,0.00018655,2]
[401107331,1767934247108,-5500.0,0.00018752,2]
[401107332,1767934247126,-1000.0,0.00018813,2]
[401107333,1767934247139,-244.0,0.00018813,2]
[401107334,1767934247149,-5000.0,0.00018863,2]
[401107335,1767934247159,-303.10001603,0.000189,2]
[401107336,1767934247170,-303.10001603,0.00019089,2]
[401107337,1767934247181,-221.941164,0.00019178,2]
[401107338,1767934247193,-221.941164,0.00019178,2]
[401107339,1767934247203,-221.941164,0.00019178,2]
[401107340,1767934247216,-221.941164,0.00019178,2]
[401107341,1767934247226,-221.941164,0.00019178,2]
[401107342,1767934247237,-221.941164,0.00019178,2]
[401107343,1767934247248,-221.941164,0.00019178,2]
[401107344,1767934247258,-221.941164,0.00019178,2]
[401107345,1767934247274,-5500.0,0.00019178,2]
[401107346,1767934247285,-1918.97723055,0.00019178,2]
[401107347,1767934247296,-4878.11739551,0.00019178,2]
[401107348,1767934247306,-16429.49,0.000192,2]
[401107349,1767934247317,-1391.37,0.000192,2]
[401107350,1767934247327,-167.54,0.000192,2]
[401107351,1767934247338,-215.73943239,0.0001926,3]
[401107352,1767934247349,-9388.79509089,0.00019262,2]
[401107353,1767934247359,-303.45210152,0.00019278,2]
[401107354,1767934247370,-3232.45700431,0.000193,2]
[401107355,1767934247380,-601.79516906,0.0001953,2]
[401107356,1767934247391,-6000.0,0.00019726,2]
[401107358,1767934247403,-1613.0,0.0001986,2]
[401107359,1767934247415,-6500.0,0.00020274,2]
[401107360,1767934247427,-293.28,0.00020274,5]
[401107362,1767934247438,-2403.26771612,0.00020307,2]
[401107363,1767934247449,-340.56,0.00020376,2]
[401107364,1767934247460,-300.0,0.00020548,5]
[401107366,1767934247471,-1251.701117,0.00020548,2]
[401107368,1767934247482,-2403.26771612,0.00020595,2]
[401107370,1767934247493,-1041.66666667,0.00020669,2]
[401107372,1767934247504,-1000.0,0.00020695,2]
[401107375,1767934247516,-492.0,0.00020695,2]
[401107377,1767934247527,-163.82,0.000207,2]
[401107379,1767934247538,-163.2,0.000207,2]
[401107381,1767934247549,-156.74880836,0.00020797,5]
[401107383,1767934247560,-300.0,0.00020822,5]
[401107386,1767934247572,-7000.0,0.00020822,2]
[401107388,1767934247584,-350.1,0.00020824,2]
[401107390,1767934247594,-2403.26771612,0.00020879,2]
[401107392,1767934247605,-165.0,0.00020904,3]
[401107394,1767934247617,-151.529877,0.00021049,2]
[401107397,1767934247627,-300.0,0.00021096,5]
[401107399,1767934247640,-2403.26771612,0.00021294,2]
[401107401,1767934247651,-7500.0,0.0002137,2]
[401107403,1767934247662,-300.0,0.0002137,5]
[401107406,1767934247673,-1391.37,0.000214,2]
[401107408,1767934247684,-2403.26771612,0.00021453,2]
[401107410,1767934247695,-658.80734297,0.0002153,2]
[401107412,1767934247707,-300.0,0.00021644,5]
[401107414,1767934247718,-30000.0,0.00021727,2]
[401107417,1767934247729,-1500.0,0.00021727,2]
[401107419,1767934247740,-151.0,0.00021727,2]
[401107421,1767934247751,-151.0,0.00021727,2]
[401107423,1767934247762,-2030.29667201,0.00021727,2]
[401107425,1767934247774,-151.0,0.00021727,2]
[401107427,1767934247785,-151.0,0.00021727,2]
[401107430,1767934247797,-151.0,0.00021727,2]
[401107432,1767934247807,-1500.0,0.00021727,2]
[401107434,1767934247819,-151.0,0.00021727,2]
[401107436,1767934247831,-250.0,0.00021727,2]
[401107438,1767934247842,-151.0,0.00021727,2]
[401107441,1767934247853,-151.0,0.00021727,2]
[401107443,1767934247864,-1500.0,0.00021727,2]
[401107445,1767934247875,-151.0,0.00021727,2]
[401107447,1767934247886,-250.0,0.00021727,2]
[401107449,1767934247897,-151.0,0.00021727,2]
[401107451,1767934247909,-151.0,0.00021727,2]
[401107454,1767934247920,-1500.0,0.00021727,2]
[401107456,1767934247931,-151.0,0.00021727,2]
[401107458,1767934247942,-250.0,0.00021727,2]
[401107460,1767934247953,-151.0,0.00021727,2]
[401107462,1767934247964,-151.0,0.00021727,2]
[401107464,1767934247975,-1500.0,0.00021727,2]
[401107467,1767934247987,-151.0,0.00021727,2]
[401107469,1767934247998,-250.0,0.00021727,2]
[401107471,1767934248009,-151.0,0.00021727,2]
[401107473,1767934248020,-1500.0,0.00021727,2]
[401107476,1767934248031,-151.0,0.00021727,2]
[401107478,1767934248042,-250.0,0.00021727,2]
[401107480,1767934248053,-151.0,0.00021727,2]
[401107482,1767934248064,-1500.0,0.00021727,2]
[401107484,1767934248075,-250.0,0.00021727,2]
[401107486,1767934248085,-151.0,0.00021727,2]
[401107489,1767934248094,-478.75725327,0.00021727,2]
[401107509,1767934248271,-151.0,0.00021727,2]
[401107512,1767934248292,-250.0,0.00021727,2]
[401107514,1767934248303,-250.0,0.00021727,2]
[401107516,1767934248312,-151.0,0.00021727,2]
[401107518,1767934248322,-1500.0,0.00021727,2]
[401107520,1767934248331,-151.0,0.00021727,2]
[401107522,1767934248341,-250.0,0.00021727,2]
[401107524,1767934248350,-151.0,0.00021727,2]
[401107526,1767934248360,-1500.0,0.00021727,2]
[401107528,1767934248370,-250.0,0.00021727,2]
[401107530,1767934248379,-151.0,0.00021727,2]
[401107532,1767934248389,-250.0,0.00021727,2]
[401107534,1767934248398,-250.0,0.00021727,2]
[401107536,1767934248407,-151.0,0.00021727,2]
[401107538,1767934248416,-1500.0,0.00021727,2]
[401107540,1767934248426,-201.61280064,0.00021727,2]
[401107542,1767934248435,-151.0,0.00021727,2]
[401107544,1767934248445,-250.0,0.00021727,2]
[401107546,1767934248454,-250.0,0.00021727,2]
[401107548,1767934248463,-151.0,0.00021727,2]
[401107550,1767934248472,-1500.0,0.00021727,2]
[401107552,1767934248482,-151.0,0.00021727,2]
[401107554,1767934248491,-250.0,0.00021727,2]
[401107556,1767934248500,-250.0,0.00021727,2]
[401107558,1767934248509,-152.53645226,0.00021727,2]
[401107560,1767934248519,-1500.0,0.00021727,2]
[401107562,1767934248528,-151.0,0.00021727,2]
[401107564,1767934248537,-250.0,0.00021727,2]
[401107566,1767934248547,-250.0,0.00021727,2]
[401107568,1767934248556,-1500.0,0.00021727,2]
[401107570,1767934248566,-151.0,0.00021727,2]
[401107572,1767934248575,-500.0,0.00021727,2]
[401107574,1767934248584,-250.0,0.00021727,2]
[401107576,1767934248594,-250.0,0.00021727,2]
[401107578,1767934248604,-1500.0,0.00021727,2]
[401107580,1767934248614,-151.0,0.00021727,2]
[401107582,1767934248623,-500.0,0.00021727,2]
[401107584,1767934248633,-250.0,0.00021727,2]
[401107586,1767934248642,-250.0,0.00021727,2]
[401107588,1767934248651,-1500.0,0.00021727,2]
[401107590,1767934248661,-151.0,0.00021727,2]
[401107592,1767934248670,-500.0,0.00021727,2]
[401107594,1767934248679,-250.0,0.00021727,2]
[401107596,1767934248689,-151.0,0.00021727,2]
[401107598,1767934248698,-500.0,0.00021727,2]
[401107600,1767934248708,-250.0,0.00021727,2]
[401107602,1767934248717,-151.0,0.00021727,2]
[401107604,1767934248727,-500.0,0.00021727,2]
[401107606,1767934248737,-250.0,0.00021727,2]
[401107608,1767934248747,-500.0,0.00021727,2]
[401107611,1767934248758,-250.0,0.00021727,2]
[401107613,1767934248769,-500.0,0.00021727,2]
[401107615,1767934248778,-250.0,0.00021727,2]
[401107617,1767934248788,-250.0,0.00021727,2]
[401107619,1767934248797,-151.0,0.00021727,2]
[401107621,1767934248807,-500.0,0.00021727,2]
[401107623,1767934248816,-264.83937598,0.00021727,2]
[401107625,1767934248825,-500.0,0.00021727,2]
[401107627,1767934248835,-2312.83697232,0.00021727,2]
[401107629,1767934248844,-500.0,0.00021727,2]
[401107631,1767934248853,-500.0,0.00021727,2]
[401107633,1767934248862,-500.0,0.00021727,2]
[401107635,1767934248872,-500.0,0.00021727,2]
[401107636,1767934248881,-500.0,0.00021727,2]
[401107637,1767934248890,-250.0,0.00021727,2]
[401107639,1767934248900,-250.0,0.00021727,2]
[401107640,1767934248909,-250.0,0.00021727,2]
[401107642,1767934248918,-250.0,0.00021727,2]
[401107644,1767934248928,-250.0,0.00021727,2]
[401107645,1767934248940,-255.89504653,0.00021727,2]
[401107647,1767934248949,-6006.53001288,0.00021733,2]
[401107648,1767934248959,-2258.0,0.00021791,2]
[401107650,1767934248969,-9388.79509089,0.00021819,2]
[401107652,1767934248978,-2403.26771612,0.00021882,2]
[401107654,1767934248988,-300.0,0.00021918,6]
[401107655,1767934248997,-299.741664,0.00021918,2]
[401107656,1767934249007,-151.0,0.00021918,2]
[401107657,1767934249016,-151.0,0.00021918,2]
[401107658,1767934249025,-151.0,0.00021918,2]
[401107659,1767934249034,-151.0,0.00021918,2]
[401107660,1767934249044,-157.670016,0.00021918,2]
[401107661,1767934249053,-151.0,0.00021918,2]
[401107662,1767934249062,-166.111995,0.00021918,2]
[401107663,1767934249071,-166.111995,0.00021918,2]
[401107664,1767934249081,-166.111995,0.00021918,2]
[401107665,1767934249090,-166.111995,0.00021918,2]
[401107666,1767934249099,-151.0,0.00021918,2]
[401107667,1767934249108,-151.0,0.00021918,2]
[401107668,1767934249117,-157.098609,0.00021918,2]
[401107669,1767934249126,-151.0,0.00021918,2]
[401107670,1767934249135,-498.400382,0.00021918,2]
[401107671,1767934249145,-498.400382,0.00021918,2]
[401107672,1767934249154,-498.400382,0.00021918,2]
[401107673,1767934249164,-498.400382,0.00021918,2]
[401107674,1767934249173,-498.400382,0.00021918,2]
[401107675,1767934249182,-498.400382,0.00021918,2]
[401107676,1767934249192,-498.400382,0.00021918,2]
[401107677,1767934249201,-498.400382,0.00021918,2]
[401107678,1767934249213,-313.573847,0.00021918,2]
[401107679,1767934249222,-313.573847,0.00021918,2]
[401107680,1767934249231,-313.573847,0.00021918,2]
[401107681,1767934249240,-313.573847,0.00021918,2]
[401107682,1767934249249,-313.573847,0.00021918,2]
[401107683,1767934249258,-313.573847,0.00021918,2]
[401107684,1767934249267,-313.573847,0.00021918,2]
[401107685,1767934249276,-313.573847,0.00021918,2]
[401107686,1767934249285,-163.657676,0.00021918,2]
[401107687,1767934249294,-163.657676,0.00021918,2]
[401107688,1767934249304,-163.657676,0.00021918,2]
[401107689,1767934249313,-163.657676,0.00021918,2]
[401107690,1767934249323,-163.657676,0.00021918,2]
[401107691,1767934249332,-163.657676,0.00021918,2]
[401107692,1767934249341,-163.657676,0.00021918,2]
[401107693,1767934249350,-163.657676,0.00021918,2]
[401107694,1767934249359,-151.0,0.00021918,2]
[401107695,1767934249368,-151.0,0.00021918,2]
[401107696,1767934249377,-151.0,0.00021918,2]
[401107697,1767934249387,-151.0,0.00021918,2]
[401107698,1767934249396,-151.0,0.00021918,2]
[401107699,1767934249405,-151.0,0.00021918,2]
[401107701,1767934249414,-151.0,0.00021918,2]
[401107703,1767934249424,-151.0,0.00021918,2]
[401107705,1767934249433,-607.260341,0.00021918,2]
[401107706,1767934249442,-607.260341,0.00021918,2]
[401107707,1767934249451,-607.260341,0.00021918,2]
[401107708,1767934249460,-607.260341,0.00021918,2]
[401107709,1767934249470,-607.260341,0.00021918,2]
[401107710,1767934249479,-607.260341,0.00021918,2]
[401107711,1767934249489,-607.260341,0.00021918,2]
[401107712,1767934249498,-607.260341,0.00021918,2]
[401107713,1767934249508,-151.0,0.00021918,2]
[401107714,1767934249517,-151.0,0.00021918,2]
[401107715,1767934249526,-3661.42549146,0.00021918,2]
[401107716,1767934249535,-151.0,0.00021918,2]
[401107717,1767934249545,-151.0,0.00021918,2]
[401107718,1767934249554,-151.0,0.00021918,2]
[401107719,1767934249564,-151.0,0.00021918,2]
[401107720,1767934249573,-350.1,0.00021951,2]
[401107721,1767934249583,-467.25,0.00022,7]
[401107722,1767934249592,-16429.49,0.00022,2]
[401107723,1767934249600,-151.0,0.00022145,2]
[401107724,1767934249611,-151.0,0.00022145,2]
[401107725,1767934249620,-498.400382,0.00022145,2]
[401107726,1767934249629,-498.400382,0.00022145,2]
[401107727,1767934249638,-498.400382,0.00022145,2]
[401107728,1767934249647,-498.400382,0.00022145,2]
[401107729,1767934249656,-313.573847,0.00022145,2]
[401107730,1767934249665,-313.573847,0.00022145,2]
[401107731,1767934249675,-313.573847,0.00022145,2]
[401107732,1767934249684,-313.573847,0.00022145,2]
[401107733,1767934249694,-2403.26771612,0.00022151,2]
[401107734,1767934249704,-300.0,0.00022192,6]
[401107735,1767934249713,-496.47127164,0.00022275,2]
[401107736,1767934249723,-295.16938961,0.00022275,2]
[401107737,1767934249732,-2398.4119403,0.00022275,2]
[401107738,1767934249742,-2403.26771612,0.0002235,2]
[401107739,1767934249751,-5000.0,0.00022413,2]
[401107740,1767934249761,-300.0,0.00022466,6]
[401107741,1767934249770,-221.941164,0.00022466,2]
[401107742,1767934249778,-221.941164,0.00022466,2]
[401107743,1767934249788,-979.022557,0.00022466,2]
[401107744,1767934249798,-221.941164,0.00022466,2]
[401107745,1767934249807,-979.022557,0.00022466,2]
[401107746,1767934249816,-419.868976,0.00022466,2]
[401107747,1767934249826,-221.941164,0.00022466,2]
[401107748,1767934249835,-979.022557,0.00022466,2]
[401107749,1767934249844,-419.868976,0.00022466,2]
[401107750,1767934249854,-979.022557,0.00022466,2]
[401107751,1767934249863,-419.868976,0.00022466,2]
[401107752,1767934249872,-419.868976,0.00022466,2]
[401107753,1767934249882,-166.0,0.00022548,7]
[401107754,1767934249891,-2403.26771612,0.0002267,2]
[401107755,1767934249901,-812373.46328223,0.00022671,2]
[401107756,1767934249910,-1298.0,0.00022686,2]
[401107757,1767934249919,-21825.09894819,0.00022698,2]
[401107758,1767934249929,-151.0,0.00022701,2]
[401107759,1767934249939,-1000.0,0.00022764,10]
[401107760,1767934249948,-791.0,0.00022764,10]
[401107761,1767934249957,-1298.0,0.00022803,2]
[401107762,1767934249966,-2403.26771612,0.00022823,2]
[401107763,1767934249976,-514.84070869,0.00022823,2]
[401107764,1767934249985,-2487.15318209,0.00022823,2]
[401107765,1767934249994,-1298.0,0.00022882,2]
[401107766,1767934250004,-1298.0,0.00022904,2]
[401107767,1767934250013,-589.69745305,0.00022935,5]
[401107768,1767934250022,-1391.37,0.00023,14]
[401107769,1767934250031,-151.0,0.00023,2]
[401107770,1767934250040,-163.657676,0.00023,2]
[401107771,1767934250050,-163.657676,0.00023,2]
[401107772,1767934250059,-163.657676,0.00023,2]
[401107773,1767934250069,-163.657676,0.00023,2]
[401107774,1767934250078,-205.052042,0.0002301,2]
[401107775,1767934250087,-190.64646236,0.00023011,5]
[401107776,1767934250097,-762.58584944,0.00023011,5]
[401107777,1767934250106,-1715.81816124,0.00023011,5]
[401107778,1767934250116,-3050.34339776,0.00023011,5]
[401107779,1767934250126,-4766.161559,0.00023011,5]
[401107780,1767934250135,-6863.27264496,0.00023011,5]
[401107781,1767934250144,-478.41281199,0.00023011,5]
[401107782,1767934250154,-9341.67665564,0.00023011,5]
[401107783,1767934250163,-1913.65124796,0.00023011,5]
[401107784,1767934250172,-4305.71530792,0.00023011,5]
[401107785,1767934250182,-510.43804958,0.00023037,2]
[401107786,1767934250191,-560.44785131,0.00023037,2]
[401107787,1767934250200,-1008.80613235,0.00023037,2]
[401107788,1767934250213,-1793.43312418,0.00023037,2]
[401107789,1767934250223,-2802.23925653,0.00023037,2]
[401107790,1767934250233,-4035.2245294,0.00023037,2]
[401107791,1767934250243,-5492.38894279,0.00023037,2]
[401107792,1767934250254,-7173.73249671,0.00023037,2]
[401107793,1767934250265,-335.15183258,0.00023037,2]
[401107794,1767934250275,-1340.6073303,0.00023037,2]
[401107795,1767934250286,-3016.36649318,0.00023037,2]
[401107796,1767934250296,-5362.42932121,0.00023037,2]
[401107797,1767934250305,-8378.7958144,0.00023037,2]
[401107798,1767934250314,-9079.25519114,0.00023037,2]
[401107799,1767934250323,-11208.9570261,0.00023037,2]
[401107800,1767934250331,-2039.71044614,0.00023037,2]
[401107801,1767934250340,-12065.46597273,0.00023037,2]
[401107802,1767934250349,-13549.27516358,0.00023037,2]
[401107803,1767934250358,-151.0,0.00023037,2]
[401107804,1767934250368,-1298.0,0.00023039,2]
[401107805,1767934250377,-151.0,0.00023069,2]
[401107806,1767934250386,-350.1,0.00023078,2]
[401107807,1767934250395,-2403.26771612,0.0002324,2]
[401107808,1767934250404,-1300.0,0.00023256,7]
[401107809,1767934250414,-200.58193509,0.00023259,3]
[401107810,1767934250423,-347.0,0.00023259,3]
[401107811,1767934250435,-152.0,0.00023259,3]
[401107812,1767934250453,-347.0,0.00023259,3]
[401107813,1767934250462,-151.0,0.00023259,3]
[401107814,1767934250471,-166.0,0.00023259,3]
[401107815,1767934250480,-347.0,0.00023259,3]
[401107816,1767934250488,-166.0,0.00023259,3]
[401107817,1767934250497,-151.0,0.00023259,3]
[401107818,1767934250506,-336.0,0.00023259,3]
[401107819,1767934250515,-336.0,0.00023259,3]
[401107820,1767934250524,-166.0,0.00023259,3]
[401107821,1767934250533,-347.0,0.00023259,3]
[401107822,1767934250542,-166.0,0.00023259,3]
[401107823,1767934250550,-151.0,0.00023259,3]
[401107824,1767934250560,-336.0,0.00023259,3]
[401107825,1767934250569,-376.65305407,0.00023259,3]
[401107826,1767934250578,-166.0,0.00023259,3]
[401107827,1767934250588,-166.0,0.00023259,3]
[401107828,1767934250597,-151.0,0.00023259,3]
[401107829,1767934250605,-336.0,0.00023259,3]
[401107830,1767934250614,-491.63015948,0.00023259,3]
[401107831,1767934250623,-166.0,0.00023259,3]
[401107832,1767934250632,-172.0,0.00023259,3]
[401107833,1767934250642,-151.0,0.00023259,3]
[401107834,1767934250651,-151.0,0.00023259,3]
[401107835,1767934250660,-336.0,0.00023259,3]
[401107836,1767934250669,-336.0,0.00023259,3]
[401107837,1767934250678,-336.0,0.00023259,3]
[401107838,1767934250687,-151.0,0.00023259,3]
[401107839,1767934250696,-154.51657413,0.00023259,3]
[401107840,1767934250704,-151.0,0.00023259,3]
[401107841,1767934250713,-336.0,0.00023259,3]
[401107842,1767934250722,-151.0,0.00023259,3]
[401107843,1767934250731,-151.0,0.00023259,3]
[401107844,1767934250740,-336.0,0.00023259,3]
[401107845,1767934250750,-151.0,0.00023259,3]
[401107846,1767934250759,-151.0,0.00023259,3]
[401107847,1767934250768,-151.0,0.00023259,3]
[401107848,1767934250778,-151.0,0.00023259,3]
[401107849,1767934250787,-151.0,0.00023259,3]
[401107850,1767934250796,-151.0,0.00023259,3]
[401107851,1767934250805,-151.0,0.00023259,3]
[401107852,1767934250814,-151.0,0.00023259,3]
[401107853,1767934250822,-187.9115595,0.00023259,3]
[401107854,1767934250831,-153.05483042,0.00023259,3]
[401107855,1767934250840,-151.0,0.00023259,3]
[401107856,1767934250849,-153.55324205,0.00023259,3]
[401107857,1767934250858,-336.0,0.00023259,3]
[401107858,1767934250868,-347.0,0.00023259,3]
[401107859,1767934250876,-347.0,0.00023259,3]
[401107860,1767934250886,-151.0,0.00023259,3]
[401107861,1767934250895,-347.0,0.00023259,3]
[401107862,1767934250904,-151.0,0.00023259,3]
[401107863,1767934250913,-336.0,0.00023259,3]
[401107864,1767934250922,-347.0,0.00023259,3]
[401107865,1767934250931,-151.0,0.00023259,3]
[401107866,1767934250940,-336.0,0.00023259,3]
[401107867,1767934250950,-151.0,0.00023259,3]
[401107868,1767934250959,-151.0,0.00023259,3]
[401107869,1767934250968,-336.0,0.00023259,3]
[401107870,1767934250977,-439.14173406,0.00023259,3]
[401107871,1767934250985,-7646.95038686,0.00023306,5]
[401107872,1767934250994,-2403.26771612,0.00023308,2]
[401107873,1767934251003,-1298.0,0.00023328,2]
[401107874,1767934251014,-533.88981491,0.00023371,2]
[401107875,1767934251023,-2579.17784983,0.00023371,2]
[401107876,1767934251032,-777.0,0.000235,2]
[401107877,1767934251042,-715.81951688,0.0002353,2]
[401107878,1767934251050,-1298.0,0.0002353,2]
[401107879,1767934251059,-193.8907019,0.00023562,2]
[401107880,1767934251068,-601.1321314,0.00023562,2]
[401107881,1767934251077,-155.7662542,0.00023562,2]
[401107882,1767934251086,-153.0,0.00023562,2]
[401107883,1767934251095,-153.0,0.00023562,2]
[401107884,1767934251104,-601.1321314,0.00023562,2]
[401107885,1767934251112,-193.8907019,0.00023562,2]
[401107886,1767934251121,-193.8907019,0.00023562,2]
[401107887,1767934251130,-601.1321314,0.00023562,2]
[401107888,1767934251139,-153.0,0.00023562,2]
[401107889,1767934251148,-601.1321314,0.00023562,2]
[401107890,1767934251157,-601.1321314,0.00023562,2]
[401107891,1767934251166,-601.1321314,0.00023562,2]
[401107892,1767934251175,-601.1321314,0.00023562,2]
[401107893,1767934251183,-601.1321314,0.00023562,2]
[401107894,1767934251192,-166.111995,0.0002365,2]
[401107895,1767934251201,-166.111995,0.0002365,2]
[401107896,1767934251211,-166.111995,0.0002365,2]
[401107897,1767934251222,-166.111995,0.0002365,2]
[401107898,1767934251232,-151.0,0.0002365,2]
[401107899,1767934251241,-9942.97674756,0.00023659,2]
[401107900,1767934251251,-2403.26771612,0.00023704,2]
[401107901,1767934251260,-3162.0,0.0002391,2]
[401107902,1767934251274,-553.64373807,0.00023919,2]
[401107903,1767934251294,-2674.60743027,0.00023919,2]
[401107904,1767934251304,-1298.0,0.00023929,2]
[401107905,1767934251314,-1298.0,0.00023932,2]
[401107906,1767934251324,-195.886572,0.00023962,2]
[401107907,1767934251335,-151.0,0.00023962,2]
[401107908,1767934251344,-1298.0,0.00023963,2]
[401107909,1767934251354,-1298.0,0.00023967,2]
[401107910,1767934251363,-1041.66666667,0.00024,3]
[401107911,1767934251373,-1298.0,0.0002403,2]
[401107912,1767934251383,-2403.26771625,0.00024098,2]
[401107913,1767934251394,-1068.024101,0.000241,2]
[401107914,1767934251404,-1390.71762886,0.000241,2]
[401107915,1767934251539,-27374.7630374,0.00024103,2]
[401107916,1767934251549,-609.8987029,0.00024103,2]
[401107917,1767934251558,-521.7475746,0.00024103,2]
[401107918,1767934251568,-151.0,0.00024103,2]
[401107919,1767934251577,-1298.0,0.00024139,2]
[401107920,1767934251592,-151.12568822,0.00024142,2]
[401107921,1767934251603,-119176.2131771,0.00024142,2]
[401107922,1767934251616,-347.0,0.00024142,3]
[401107923,1767934251626,-152.0,0.00024142,3]
[401107924,1767934251636,-347.0,0.00024142,3]
[401107925,1767934251646,-151.0,0.00024142,3]
[401107926,1767934251655,-152.0,0.00024142,3]
[401107927,1767934251665,-347.0,0.00024142,3]
[401107928,1767934251674,-151.0,0.00024142,3]
[401107929,1767934251683,-336.0,0.00024142,3]
[401107930,1767934251693,-152.0,0.00024142,3]
[401107931,1767934251703,-347.0,0.00024142,3]
[401107932,1767934251712,-151.0,0.00024142,3]
[401107933,1767934251721,-152.0,0.00024142,3]
[401107934,1767934251731,-336.0,0.00024142,3]
[401107935,1767934251741,-347.0,0.00024142,3]
[401107936,1767934251750,-151.0,0.00024142,3]
[401107937,1767934251760,-152.0,0.00024142,3]
[401107938,1767934251769,-336.0,0.00024142,3]
[401107939,1767934251779,-347.0,0.00024142,3]
[401107940,1767934251788,-151.0,0.00024142,3]
[401107941,1767934251798,-152.0,0.00024142,3]
[401107942,1767934251808,-336.0,0.00024142,3]
[401107943,1767934251818,-347.0,0.00024142,3]
[401107944,1767934251827,-152.0,0.00024142,3]
[401107945,1767934251838,-151.0,0.00024142,3]
[401107946,1767934251848,-336.0,0.00024142,3]
[401107947,1767934251858,-347.0,0.00024142,3]
[401107948,1767934251867,-292.23410798,0.00024142,3]
[401107949,1767934251879,-151.0,0.00024142,3]
[401107950,1767934251889,-336.0,0.00024142,3]
[401107951,1767934251899,-347.0,0.00024142,3]
[401107952,1767934251909,-151.0,0.00024142,3]
[401107953,1767934251918,-336.0,0.00024142,3]
[401107954,1767934251928,-347.0,0.00024142,3]
[401107955,1767934251938,-151.0,0.00024142,3]
[401107956,1767934251948,-336.0,0.00024142,3]
[401107957,1767934251957,-151.0,0.00024142,3]
[401107958,1767934251967,-347.0,0.00024142,3]
[401107959,1767934251976,-151.0,0.00024142,3]
[401107960,1767934251986,-336.0,0.00024142,3]
[401107961,1767934251995,-347.0,0.00024142,3]
[401107962,1767934252005,-152.09438666,0.00024142,3]
[401107963,1767934252016,-336.0,0.00024142,3]
[401107964,1767934252026,-347.0,0.00024142,3]
[401107965,1767934252036,-347.0,0.00024142,3]
[401107966,1767934252046,-336.0,0.00024142,3]
[401107967,1767934252055,-336.0,0.00024142,3]
[401107968,1767934252065,-347.0,0.00024142,3]
[401107969,1767934252076,-336.0,0.00024142,3]
[401107970,1767934252086,-347.0,0.00024142,3]
[401107971,1767934252095,-336.0,0.00024142,3]
[401107972,1767934252105,-347.0,0.00024142,3]
[401107973,1767934252115,-347.0,0.00024142,3]
[401107974,1767934252124,-346.0285517,0.00024142,3]
[401107975,1767934252134,-347.0,0.00024142,3]
[401107976,1767934252144,-347.0,0.00024142,3]
[401107977,1767934252153,-347.0,0.00024142,3]
[401107978,1767934252163,-347.0,0.00024142,3]
[401107979,1767934252173,-347.0,0.00024142,3]
[401107980,1767934252183,-347.0,0.00024142,3]
[401107981,1767934252192,-347.0,0.00024142,3]
[401107982,1767934252202,-347.0,0.00024142,3]
[401107983,1767934252213,-347.0,0.00024142,3]
[401107984,1767934252224,-347.0,0.00024142,3]
[401107985,1767934252233,-360.81043287,0.00024142,3]
[401107986,1767934252243,-151.0,0.00024142,2]
[401107987,1767934252253,-151.0,0.00024142,2]
[401107988,1767934252263,-181.573329,0.00024142,2]
[401107989,1767934252272,-498.400382,0.00024142,2]